bitfinex/quotes_BTCUSD_20241027
["timestamp","ask_amount","ask_price","bid_price","bid_amount"]
[1730033536461,0.45242512,67401.0,67400.0,0.00093727]
[1730033538614,0.45243326,67401.0,67400.0,0.00093727]
[1730033540173,0.45325526,67401.0,67400.0,0.00093727]
[1730033540854,0.3641594,67401.0,67400.0,0.00093727]
[1730033543986,0.3761594,67401.0,67400.0,0.00093727]
[1730033544206,0.5414594,67401.0,67400.0,0.00093727]
[1730033544642,0.5434594,67401.0,67400.0,0.00093727]
[1730033545078,0.5414594,67401.0,67400.0,0.00093727]
[1730033545699,0.5434594,67401.0,67400.0,0.00093727]
[1730033551688,0.5414594,67401.0,67400.0,0.00093727]
[1730033553465,0.3641594,67401.0,67400.0,0.00093727]
[1730033554339,0.47539992,67401.0,67400.0,0.00093727]
[1730033554548,0.3641594,67401.0,67400.0,0.00093727]
[1730033554808,0.47539992,67401.0,67400.0,0.00093727]
[1730033557192,0.47540033,67401.0,67400.0,0.00093727]
[1730033559919,0.47540238,67401.0,67400.0,0.00093727]
[1730033563406,0.3641594,67401.0,67400.0,0.00093727]
[1730033564042,0.45315232,67401.0,67400.0,0.00093727]
[1730033564256,0.45315232,67401.0,67400.0,0.10013727]
[1730033564678,0.3641594,67401.0,67400.0,0.10013727]
[1730033568696,0.47540238,67401.0,67400.0,0.10013727]
[1730033569374,0.47540238,67401.0,67400.0,0.00093727]
[1730033570712,0.3641594,67401.0,67400.0,0.00093727]
[1730033571852,0.3661594,67401.0,67400.0,0.00093727]
[1730033573393,0.3641594,67401.0,67400.0,0.00093727]
[1730033574496,0.364108,67401.0,67400.0,0.00093727]
[1730033579215,0.364108,67401.0,67400.0,0.00070036]
[1730033581208,0.366108,67401.0,67400.0,0.00070036]
[1730033581419,0.364108,67401.0,67400.0,0.00070036]
[1730033589237,0.364108,67401.0,67400.0,0.00064882]
[1730033591975,0.366108,67401.0,67400.0,0.00064882]
[1730033592229,0.364108,67401.0,67400.0,0.00064882]
[1730033592464,0.366108,67401.0,67400.0,0.00064882]
[1730033592887,0.364108,67401.0,67400.0,0.00064882]
[1730033594233,0.366108,67401.0,67400.0,0.00064882]
[1730033594665,0.4996648,67401.0,67400.0,0.00064882]
[1730033595113,0.366108,67401.0,67400.0,0.00064882]
[1730033596460,0.4996648,67401.0,67400.0,0.00064882]
[1730033597305,0.366108,67401.0,67400.0,0.00064882]
[1730033598223,0.376108,67401.0,67400.0,0.00064882]
[1730033599127,0.457808,67401.0,67400.0,0.00064882]
[1730033600487,0.975176,67401.0,67400.0,0.00064882]
[1730033601611,2.390949,67401.0,67400.0,0.00064882]
[1730033602958,2.084541,67401.0,67400.0,0.00064882]
[1730033604347,1.935975,67401.0,67400.0,0.00064882]
[1730033604575,2.08647881,67401.0,67400.0,0.00064882]
[1730033605260,2.23675267,67401.0,67400.0,0.00064882]
[1730033605474,1.935975,67401.0,67400.0,0.00064882]
[1730033605716,1.935975,67401.0,67400.0,8.2e-07]
[1730033605969,0.552208,67401.0,67400.0,8.2e-07]
[1730033606203,0.57544585,67401.0,67400.0,8.2e-07]
[1730033606647,0.72200694,67401.0,67400.0,8.2e-07]
[1730033608004,0.85418411,67401.0,67400.0,8.2e-07]
[1730033609123,1.10418411,67401.0,67400.0,8.2e-07]
[1730033610008,0.2784,67385.0,67384.0,0.22240179]
[1730033610235,0.47473459,67385.0,67384.0,0.22240179]
[1730033610462,0.47273459,67385.0,67384.0,0.22240179]
[1730033610686,0.253405,67383.0,67377.0,0.22278179]
[1730033610946,0.47273959,67383.0,67377.0,0.22278179]
[1730033611158,0.56168306,67383.0,67377.0,0.22278179]
[1730033611636,0.47273959,67383.0,67377.0,0.22278179]
[1730033612991,0.49057429,67383.0,67377.0,0.22278179]
[1730033613679,0.55725374,67383.0,67377.0,0.22278179]
[1730033618597,0.61663474,67383.0,67377.0,0.22278179]
[1730033618825,0.54995529,67383.0,67377.0,0.22278179]
[1730033619034,0.61661053,67383.0,67377.0,0.22278179]
[1730033622710,0.59438248,67383.0,67377.0,0.22278179]
[1730033625751,0.59438074,67383.0,67377.0,0.22278179]
[1730033630407,0.5943826,67383.0,67377.0,0.22278179]
[1730033630626,0.5943826,67383.0,67377.0,0.00038]
[1730033631977,0.73415529,67383.0,67382.0,0.001644]
[1730033641872,0.73215529,67383.0,67382.0,0.001644]
[1730033642308,0.73415529,67383.0,67382.0,0.001644]
[1730033642536,0.73215529,67383.0,67382.0,0.001644]
[1730033642757,0.55995529,67383.0,67382.0,0.001644]
[1730033643243,0.55495529,67383.0,67382.0,0.001644]
[1730033643469,0.54995529,67383.0,67382.0,0.001644]
[1730033643690,0.66108466,67383.0,67382.0,0.001644]
[1730033643941,0.66109432,67383.0,67382.0,0.001644]
[1730033644169,0.54995529,67383.0,67382.0,0.001644]
[1730033644646,0.66109432,67383.0,67382.0,0.001644]
[1730033644871,0.54995529,67383.0,67382.0,0.001644]
[1730033646495,0.66109432,67383.0,67382.0,0.171844]
[1730033648852,0.54995529,67383.0,67382.0,0.171844]
[1730033652570,0.21207048,67383.0,67382.0,0.171844]
[1730033652798,0.19423578,67383.0,67382.0,0.171844]
[1730033653018,0.2609966,67383.0,67382.0,0.171844]
[1730033653481,0.19423578,67383.0,67382.0,0.171844]
[1730033653712,0.148405,67383.0,67382.0,0.171844]
[1730033653951,0.248405,67383.0,67382.0,0.171844]
[1730033655377,0.29418115,67383.0,67382.0,0.171844]
[1730033655609,0.33868305,67383.0,67382.0,0.171844]
[1730033655836,0.29417657,67383.0,67382.0,0.171844]
[1730033656059,0.248405,67383.0,67382.0,0.171844]
[1730033656289,0.33868333,67383.0,67382.0,0.171844]
[1730033656787,0.29417685,67383.0,67382.0,0.171844]
[1730033657712,0.248405,67383.0,67382.0,0.171844]
[1730033660476,0.42190881,67383.0,67382.0,0.092844]
[1730033660726,0.42190881,67383.0,67382.0,0.001644]
[1730033660965,0.5121699,67383.0,67382.0,0.001644]
[1730033661196,0.46766342,67383.0,67382.0,0.001644]
[1730033661413,0.53442424,67383.0,67382.0,0.001644]
[1730033662349,0.55667965,67383.0,67382.0,0.001644]
[1730033662803,0.46766342,67383.0,67382.0,0.001644]
[1730033664945,0.46770342,67383.0,67382.0,0.001644]
[1730033665359,0.55667837,67383.0,67382.0,0.001644]
[1730033665613,0.55667739,67383.0,67382.0,0.001644]
[1730033667176,0.46770342,67383.0,67382.0,0.001644]
[1730033668797,0.57897799,67383.0,67382.0,0.001644]
[1730033670209,0.55667489,67383.0,67382.0,0.001644]
[1730033670676,0.5566748,67383.0,67382.0,0.001644]
[1730033673795,0.46770342,67383.0,67382.0,0.001644]
[1730033674971,0.55667305,67383.0,67382.0,0.001644]
[1730033675465,0.46770342,67383.0,67382.0,0.001644]
[1730033675713,0.55667309,67383.0,67382.0,0.001644]
[1730033676914,0.46770342,67383.0,67382.0,0.001644]
[1730033677368,0.55667431,67383.0,67382.0,0.001644]
[1730033678049,0.55667573,67383.0,67382.0,0.001644]
[1730033678761,0.46770342,67383.0,67382.0,0.001644]
[1730033678989,0.55667958,67383.0,67382.0,0.001644]
[1730033679411,0.46770342,67383.0,67382.0,0.001644]
[1730033683982,0.47364142,67383.0,67382.0,0.001644]
[1730033684436,0.45064142,67383.0,67382.0,0.099144]
[1730033684658,0.44470342,67383.0,67382.0,0.099144]
[1730033687275,0.46770342,67383.0,67382.0,0.099144]
[1730033692227,0.46770342,67383.0,67382.0,0.001644]
[1730033694467,0.55675025,67383.0,67382.0,0.001644]
[1730033697168,0.46770342,67383.0,67382.0,0.001644]
[1730033700665,0.57902789,67383.0,67382.0,0.001644]
[1730033702321,0.46770342,67383.0,67382.0,0.001644]
[1730033707797,0.57908065,67383.0,67382.0,0.001644]
[1730033708018,0.46770342,67383.0,67382.0,0.001644]
[1730033708238,0.46770342,67383.0,67382.0,0.094244]
[1730033708913,0.5850161,67383.0,67382.0,0.094244]
[1730033709172,0.47364042,67383.0,67382.0,0.094244]
[1730033709393,0.56273111,67383.0,67382.0,0.094244]
[1730033710546,0.55679411,67383.0,67382.0,0.094244]
[1730033710771,0.44470342,67383.0,67382.0,0.094244]
[1730033710986,0.29419961,67383.0,67382.0,0.094244]
[1730033711224,0.29419961,67383.0,67382.0,0.174544]
[1730033711693,0.33873608,67383.0,67382.0,0.174544]
[1730033713339,0.248445,67383.0,67382.0,0.174544]
[1730033713568,0.29425517,67383.0,67382.0,0.174544]
[1730033714262,0.248445,67383.0,67382.0,0.174544]
[1730033714725,0.2942537,67383.0,67382.0,0.174544]
[1730033715410,0.248445,67383.0,67382.0,0.174544]
[1730033719242,0.248445,67383.0,67382.0,0.094244]
[1730033727233,0.248445,67383.0,67382.0,0.001644]
[1730033737205,0.248445,67383.0,67382.0,0.099344]
[1730033738295,0.248445,67383.0,67382.0,0.176644]
[1730033740250,0.29426339,67383.0,67382.0,0.176644]
[1730033743659,0.19426339,67383.0,67382.0,0.176644]
[1730033748466,0.148445,67383.0,67382.0,0.176644]
[1730033755451,0.148445,67383.0,67382.0,0.099344]
[1730033763212,0.148445,67383.0,67382.0,0.001644]
[1730033790040,0.238841,67383.0,67382.0,0.001644]
[1730033791232,0.19429741,67383.0,67382.0,0.001644]
[1730033791449,0.23885745,67383.0,67382.0,0.001644]
[1730033792350,0.19429741,67383.0,67382.0,0.001644]
[1730033792596,0.23885908,67383.0,67382.0,0.001644]
[1730033800525,0.61990122,67383.0,67382.0,0.001644]
[1730033800745,0.75426021,67383.0,67382.0,0.001644]
[1730033800997,0.64290122,67383.0,67382.0,0.001644]
[1730033801231,0.75427746,67383.0,67382.0,0.001644]
[1730033801908,0.64290122,67383.0,67382.0,0.001644]
[1730033803352,0.75423582,67383.0,67382.0,0.001644]
[1730033805146,0.64290122,67383.0,67382.0,0.001644]
[1730033808381,0.73192343,67383.0,67382.0,0.001644]
[1730033808627,0.64290122,67383.0,67382.0,0.001644]
[1730033809289,0.73191745,67383.0,67382.0,0.001644]
[1730033810655,0.73785545,67383.0,67382.0,0.001644]
[1730033811185,0.96025724,67383.0,67382.0,0.001644]
[1730033811405,0.73785545,67383.0,67382.0,0.001644]
[1730033813199,0.7378404,67383.0,67382.0,0.001644]
[1730033813419,0.73783754,67383.0,67382.0,0.001644]
[1730033816660,0.64883922,67383.0,67382.0,0.001644]
[1730033817558,0.73782923,67383.0,67382.0,0.001644]
[1730033818298,0.64883922,67383.0,67382.0,0.001644]
[1730033818756,0.73782923,67383.0,67382.0,0.001644]
[1730033818980,0.73822923,67383.0,67382.0,0.001644]
[1730033822893,0.76247674,67383.0,67382.0,0.001644]
[1730033823131,0.65123922,67383.0,67382.0,0.001644]
[1730033823874,0.64923922,67383.0,67382.0,0.001644]
[1730033824105,0.65123922,67383.0,67382.0,0.001644]
[1730033825720,0.64923922,67383.0,67382.0,0.001644]
[1730033826177,0.65123922,67383.0,67382.0,0.001644]
[1730033826635,0.88364101,67383.0,67382.0,0.001644]
[1730033826882,0.66623922,67383.0,67382.0,0.001644]
[1730033830287,0.66623922,67383.0,67382.0,1e-06]
[1730033845406,0.66423922,67383.0,67382.0,1e-06]
[1730033845864,0.48873922,67383.0,67382.0,1e-06]
[1730033846312,0.48373922,67383.0,67382.0,1e-06]
[1730033846530,0.48873922,67383.0,67382.0,1e-06]
[1730033846812,0.48373922,67383.0,67382.0,1e-06]
[1730033847040,0.48873922,67383.0,67382.0,1e-06]
[1730033849799,0.48956122,67383.0,67382.0,1e-06]
[1730033859670,0.49156122,67383.0,67382.0,1e-06]
[1730033859911,0.48956122,67383.0,67382.0,1e-06]
[1730033861131,0.49156122,67383.0,67382.0,1e-06]
[1730033862515,0.64167274,67383.0,67382.0,1e-06]
[1730033862989,0.63967274,67383.0,67382.0,1e-06]
[1730033864968,0.62967274,67383.0,67382.0,1e-06]
[1730033865188,0.63467274,67383.0,67382.0,1e-06]
[1730033865631,0.63967274,67383.0,67382.0,1e-06]
[1730033867032,0.6297932,67383.0,67382.0,1e-06]
[1730033867679,0.47956122,67383.0,67382.0,1e-06]
[1730033880244,0.48156122,67383.0,67382.0,1e-06]
[1730033880942,0.47956122,67383.0,67382.0,1e-06]
[1730033881206,0.48156122,67383.0,67382.0,1e-06]
[1730033885291,0.47956122,67383.0,67382.0,1e-06]
[1730033888119,0.48156122,67383.0,67382.0,1e-06]
[1730033889281,0.47956122,67383.0,67382.0,1e-06]
[1730033890894,0.62499235,67383.0,67382.0,1e-06]
[1730033891129,0.35156122,67383.0,67382.0,1e-06]
[1730033891361,0.48520882,67383.0,67382.0,1e-06]
[1730033892066,0.48520882,67383.0,67382.0,0.093401]
[1730033892306,0.45156122,67383.0,67382.0,0.093401]
[1730033897532,0.44562322,67383.0,67382.0,0.093401]
[1730033897746,0.55664604,67383.0,67382.0,0.093401]
[1730033897971,0.44538592,67383.0,67382.0,0.093401]
[1730033898449,0.40612964,67383.0,67382.0,0.093401]
[1730033898666,0.40612964,67383.0,67382.0,0.172901]
[1730033899342,0.29488211,67383.0,67382.0,0.172901]
[1730033899802,0.29464542,67383.0,67382.0,0.172901]
[1730033901479,0.3836153,67383.0,67382.0,0.172901]
[1730033903323,0.38360836,67383.0,67382.0,0.172901]
[1730033903779,0.31551056,67383.0,67382.0,0.172901]
[1730033904032,0.36126454,67383.0,67382.0,0.172901]
[1730033904283,0.36125895,67383.0,67382.0,0.172901]
[1730033905711,0.31550497,67383.0,67382.0,0.172901]
[1730033906193,0.29454188,67383.0,67382.0,0.172901]
[1730033906418,0.3612483,67383.0,67382.0,0.172901]
[1730033907724,0.31549943,67383.0,67382.0,0.172901]
[1730033907939,0.3154917,67383.0,67382.0,0.172901]
[1730033908383,0.29325692,67383.0,67382.0,0.172901]
[1730033908824,0.24879301,67383.0,67382.0,0.172901]
[1730033909050,0.14879301,67383.0,67382.0,0.172901]
[1730033910269,0.14855525,67383.0,67382.0,0.172901]
[1730033918589,0.14855525,67383.0,67382.0,0.197006]
[1730033919764,0.14831815,67383.0,67382.0,0.197006]
[1730033924564,0.000862,67383.0,67382.0,0.197006]
[1730033930649,0.149267,67383.0,67382.0,0.197006]
[1730033934836,0.149267,67383.0,67382.0,0.117506]
[1730033938895,0.1490425,67383.0,67382.0,0.117506]
[1730033943397,0.1490425,67383.0,67382.0,0.024106]
[1730033945182,0.0006375,67383.0,67382.0,0.024106]
[1730033946545,0.1490425,67383.0,67382.0,0.024106]
[1730033949038,0.0006375,67383.0,67382.0,0.024106]
[1730033949259,0.0006375,67383.0,67382.0,0.202406]
[1730033949486,0.0006375,67383.0,67382.0,0.20704835]
[1730033949930,0.0006375,67383.0,67382.0,0.20204833]
[1730033951377,0.0006375,67383.0,67382.0,0.20369233]
[1730033954739,0.0006375,67383.0,67382.0,0.20666009]
[1730033955805,0.0006375,67383.0,67382.0,0.20369233]
[1730033956749,0.0006375,67383.0,67382.0,0.20869233]
[1730033957381,0.0006375,67383.0,67382.0,0.20405]
[1730033957591,0.0006375,67383.0,67382.0,0.20869227]
[1730033961291,0.0006375,67383.0,67382.0,0.20405]
[1730033961517,0.0006375,67383.0,67382.0,0.20869227]
[1730033962431,0.0006375,67383.0,67382.0,0.20405]
[1730033963570,0.0006375,67383.0,67382.0,0.20869234]
[1730033964834,0.0006375,67383.0,67382.0,0.35709934]
[1730033965046,0.0006375,67383.0,67382.0,0.20869234]
[1730033965460,0.0006375,67383.0,67382.0,0.35709934]
[1730033965667,0.0006375,67383.0,67382.0,0.20869234]
[1730033967422,0.0006375,67383.0,67382.0,0.20869222]
[1730033972222,0.0006375,67383.0,67382.0,0.20869227]
[1730033974811,0.0006375,67383.0,67382.0,0.21869227]
[1730033975879,0.0006375,67383.0,67382.0,0.21405]
[1730033976095,0.0006375,67383.0,67382.0,0.21869217]
[1730033979686,0.0006375,67383.0,67382.0,0.36709917]
[1730033979921,0.0006375,67383.0,67382.0,0.21869217]
[1730033982250,0.0006375,67383.0,67382.0,0.13689217]
[1730033983636,0.0006375,67383.0,67382.0,0.13225]
[1730033983855,0.0006375,67383.0,67382.0,0.13689212]
[1730033986588,0.0006375,67383.0,67382.0,0.28529912]
[1730033988657,0.0006375,67383.0,67382.0,0.13689212]
[1730033988893,0.0006375,67383.0,67382.0,0.28529912]
[1730033994282,0.0006375,67383.0,67382.0,0.280657]
[1730033994513,0.0006375,67383.0,67382.0,0.28529906]
[1730033994802,0.0006375,67383.0,67382.0,0.28529907]
[1730033998208,0.0006375,67383.0,67382.0,0.280657]
[1730033998417,0.0006375,67383.0,67382.0,0.28529915]
[1730033999494,0.0006375,67383.0,67382.0,0.13689215]
[1730033999937,0.0006375,67383.0,67382.0,0.28994128]
[1730034000425,0.1490425,67383.0,67382.0,0.02539215]
[1730034000648,0.1490425,67383.0,67382.0,0.02075]
[1730034001792,0.19358179,67383.0,67382.0,0.02075]
[1730034002428,0.1490425,67383.0,67382.0,0.02075]
[1730034003701,0.0006375,67383.0,67382.0,0.02075]
[1730034003916,0.1490425,67383.0,67382.0,0.02075]
[1730034004379,0.0006375,67383.0,67382.0,0.02075]
[1730034004597,0.0006375,67383.0,67382.0,0.169157]
[1730034005291,0.0006375,67383.0,67382.0,0.260957]
[1730034006866,0.0006375,67383.0,67382.0,0.265957]
[1730034007512,0.0006375,67383.0,67382.0,0.275957]
[1730034007756,0.296769,67393.0,67385.0,0.005]
[1730034007757,0.27952882,67393.0,67385.0,0.005]
[1730034007970,0.22240179,67389.0,67385.0,0.153399]
[1730034008183,0.148389,67391.0,67385.0,0.153399]
[1730034008395,0.148389,67391.0,67385.0,0.005]
[1730034008620,0.296758,67395.0,67385.0,0.005]
[1730034008831,0.148387,67392.0,67385.0,0.1534]
[1730034009491,0.148387,67392.0,67386.0,0.148398]
[1730034009703,0.148387,67392.0,67385.0,0.005]
[1730034009960,0.148387,67392.0,67386.0,0.148398]
[1730034010181,0.296768,67393.0,67385.0,0.301801]
[1730034010398,0.148387,67392.0,67385.0,0.005]
[1730034010616,0.296758,67395.0,67385.0,0.005]
[1730034010834,0.148384,67393.0,67386.0,0.148396]
[1730034011709,0.148386,67392.0,67386.0,0.148396]
[1730034012380,0.14837,67399.0,67392.0,0.148384]
[1730034012595,0.22240179,67396.0,67392.0,0.00296737]
[1730034012825,0.1,67399.0,67392.0,0.148384]
[1730034012826,0.148373,67398.0,67392.0,0.148384]
[1730034013042,0.148372,67398.0,67392.0,0.148384]
[1730034013266,0.148372,67398.0,67391.0,0.00296744]
[1730034013267,0.248371,67399.0,67391.0,0.29974244]
[1730034013489,0.248371,67399.0,67392.0,0.148385]
[1730034013490,0.148373,67398.0,67392.0,0.148385]
[1730034013757,0.24837,67399.0,67393.0,0.148382]
[1730034014015,0.000862,67400.0,67394.0,0.005]
[1730034014266,0.000862,67400.0,67398.0,0.148371]
[1730034014476,0.000862,67400.0,67399.0,0.00796717]
[1730034014718,0.000862,67400.0,67399.0,0.15633717]
[1730034016316,0.000862,67400.0,67399.0,0.15337]
[1730034021608,0.000862,67400.0,67399.0,0.16337]
[1730034033359,0.000862,67400.0,67399.0,0.38577179]
[1730034033572,0.000862,67400.0,67399.0,0.41147381]
[1730034033808,0.000862,67400.0,67399.0,0.41611437]
[1730034034035,0.000862,67400.0,67399.0,0.42075481]
[1730034037774,0.000862,67400.0,67399.0,0.42075454]
[1730034040463,0.000862,67400.0,67399.0,0.43177846]
[1730034040693,0.000862,67400.0,67399.0,0.51550287]
[1730034041199,0.000862,67400.0,67399.0,0.51086685]
[1730034041406,0.000862,67400.0,67399.0,0.51550713]
[1730034042758,0.000862,67400.0,67399.0,0.51750713]
[1730034044623,0.000862,67400.0,67399.0,0.51550713]
[1730034045896,0.000862,67400.0,67399.0,0.51750713]
[1730034046365,0.000862,67400.0,67399.0,0.51550713]
[1730034048846,0.000862,67400.0,67399.0,0.51750713]
[1730034052236,0.000862,67400.0,67399.0,0.51750691]
[1730034053611,0.000862,67400.0,67399.0,0.64050691]
[1730034053896,0.000862,67400.0,67399.0,0.65815222]
[1730034055923,0.000862,67400.0,67399.0,0.65816067]
[1730034057450,0.000862,67400.0,67399.0,0.72427045]
[1730034058308,0.000862,67400.0,67399.0,0.88702069]
[1730034059446,0.000862,67400.0,67399.0,0.79222648]
[1730034059671,0.000862,67400.0,67399.0,0.82090781]
[1730034059876,0.000862,67400.0,67399.0,0.80884494]
[1730034060091,0.000862,67400.0,67399.0,0.82090781]
[1730034060371,0.000862,67400.0,67399.0,0.65815757]
[1730034060588,0.000862,67400.0,67399.0,0.9091452]
[1730034061657,0.000862,67400.0,67399.0,0.82094639]
[1730034062338,0.000862,67400.0,67399.0,0.81631037]
[1730034062535,0.000862,67400.0,67399.0,0.82094993]
[1730034063694,0.000862,67400.0,67399.0,0.65816111]
[1730034063902,0.000862,67400.0,67399.0,0.63516111]
[1730034065191,0.000862,67400.0,67399.0,0.55886111]
[1730034065429,0.000862,67400.0,67399.0,0.35926111]
[1730034065614,0.000862,67400.0,67399.0,0.34160888]
[1730034065831,0.000862,67400.0,67399.0,0.33057795]
[1730034066046,0.000862,67400.0,67399.0,0.34161739]
[1730034069399,0.000862,67400.0,67399.0,0.32491325]
[1730034069610,0.000862,67400.0,67399.0,0.33057821]
[1730034069821,0.000862,67400.0,67399.0,0.34161958]
[1730034071496,0.000862,67400.0,67399.0,0.36128577]
[1730034071733,0.000862,67400.0,67399.0,0.45588577]
[1730034072736,0.000862,67400.0,67399.0,0.45388577]
[1730034073163,0.000862,67400.0,67399.0,0.45388762]
[1730034073386,0.000862,67400.0,67399.0,0.41311392]
[1730034073596,0.000862,67400.0,67399.0,0.44924857]
[1730034073812,0.000862,67400.0,67399.0,0.45388861]
[1730034075130,0.000862,67400.0,67399.0,0.45588861]
[1730034075332,0.000862,67400.0,67399.0,0.50002304]
[1730034076035,0.000862,67400.0,67399.0,0.49803881]
[1730034077270,0.000862,67400.0,67399.0,0.45388861]
[1730034078378,0.000862,67400.0,67399.0,0.52011391]
[1730034079427,0.000862,67400.0,67399.0,0.683202]
[1730034080543,0.000862,67400.0,67399.0,0.67856196]
[1730034080766,0.000862,67400.0,67399.0,0.6169767]
[1730034086345,0.000862,67400.0,67399.0,0.7052771]
[1730034086580,0.000862,67400.0,67399.0,0.6169767]
[1730034090245,0.000862,67400.0,67399.0,0.61701758]
[1730034090932,0.000862,67400.0,67399.0,0.70740068]
[1730034091677,0.000862,67400.0,67399.0,0.68973985]
[1730034091906,0.000862,67400.0,67399.0,0.70741957]
[1730034094263,0.000862,67400.0,67399.0,0.61903647]
[1730034094499,0.000862,67400.0,67399.0,0.61703647]
[1730034094736,0.000862,67400.0,67399.0,0.61903647]
[1730034095445,0.000862,67400.0,67399.0,0.62460347]
[1730034098853,0.000862,67400.0,67399.0,0.61356649]
[1730034099082,0.000862,67400.0,67399.0,0.62462434]
[1730034100220,0.000862,67400.0,67399.0,0.63204834]
[1730034101601,0.000862,67400.0,67399.0,0.74252722]
[1730034102302,0.000862,67400.0,67399.0,0.74052722]
[1730034102548,0.000862,67400.0,67399.0,0.71083207]
[1730034102783,0.000862,67400.0,67399.0,0.74052849]
[1730034103476,0.000862,67400.0,67399.0,0.74252849]
[1730034103946,0.000862,67400.0,67399.0,0.74052849]
[1730034104181,0.000862,67400.0,67399.0,0.46692064]
[1730034104415,0.000862,67400.0,67399.0,0.63011956]
[1730034106319,0.000862,67400.0,67399.0,0.60242335]
[1730034106574,0.000862,67400.0,67399.0,0.63011922]
[1730034106810,0.000862,67400.0,67399.0,0.60221846]
[1730034107039,0.000862,67400.0,67399.0,0.63954309]
[1730034107991,0.000862,67400.0,67399.0,0.63397493]
[1730034108972,0.000862,67400.0,67399.0,0.63404456]
[1730034110177,0.000862,67400.0,67399.0,0.62198059]
[1730034110363,0.000862,67400.0,67399.0,0.63404443]
[1730034110563,0.000862,67400.0,67399.0,0.63204443]
[1730034112095,0.000822,67401.0,67400.0,0.163367]
[1730034112319,0.000822,67401.0,67400.0,0.64059018]
[1730034113677,0.000822,67401.0,67400.0,0.64059162]
[1730034113887,0.000822,67401.0,67400.0,0.62852768]
[1730034114148,0.000822,67401.0,67400.0,0.64059228]
[1730034116358,0.000822,67401.0,67400.0,0.53558672]
[1730034116575,0.000822,67401.0,67400.0,0.64059542]
[1730034117674,0.000822,67401.0,67400.0,0.59514063]
[1730034117940,0.000822,67401.0,67400.0,0.62953772]
[1730034118173,0.000822,67401.0,67400.0,0.61646795]
[1730034118395,0.000822,67401.0,67400.0,0.64060461]
[1730034119267,0.000822,67401.0,67400.0,0.62854063]
[1730034119489,0.000822,67401.0,67400.0,0.64060461]
[1730034121043,0.000822,67401.0,67400.0,0.58772535]
[1730034121264,0.000822,67401.0,67400.0,0.6406064]
[1730034122675,0.000822,67401.0,67400.0,0.59978933]
[1730034122891,0.000822,67401.0,67400.0,0.64060767]
[1730034123112,0.000822,67401.0,67400.0,0.62854369]
[1730034123580,0.000822,67401.0,67400.0,0.66936313]
[1730034124180,0.000822,67401.0,67400.0,0.62854369]
[1730034124661,0.000822,67401.0,67400.0,0.61647971]
[1730034125372,0.000822,67401.0,67400.0,0.64987502]
[1730034125599,0.000822,67401.0,67400.0,0.66936302]
[1730034126036,0.000822,67401.0,67400.0,0.55878453]
[1730034126476,0.000822,67401.0,67400.0,0.6693708]
[1730034126924,0.000822,67401.0,67400.0,0.66937006]
[1730034128185,0.000822,67401.0,67400.0,0.55878843]
[1730034128422,0.000822,67401.0,67400.0,0.56043243]
[1730034128576,0.000822,67401.0,67400.0,0.39715174]
[1730034128981,0.000822,67401.0,67400.0,0.40272058]
[1730034129191,0.000822,67401.0,67400.0,0.24664793]
[1730034129469,0.000822,67401.0,67400.0,0.22895281]
[1730034129470,0.174822,67401.0,67400.0,0.22895281]
[1730034130046,0.174822,67401.0,67400.0,0.21789336]
[1730034130454,0.174822,67401.0,67400.0,0.21046936]
[1730034131071,0.174822,67401.0,67400.0,0.21047184]
[1730034131288,0.174822,67401.0,67400.0,0.20304674]
[1730034134609,0.174822,67401.0,67400.0,0.19840605]
[1730034134830,0.174822,67401.0,67400.0,0.20304677]
[1730034135458,0.174822,67401.0,67400.0,0.19840607]
[1730034135754,0.174822,67401.0,67400.0,0.16965171]
[1730034136205,0.174822,67401.0,67400.0,0.17429242]
[1730034136419,0.174822,67401.0,67400.0,0.16965171]
[1730034138690,0.174822,67401.0,67400.0,0.1696517]
[1730034141507,0.081922,67401.0,67400.0,0.1696517]
[1730034142960,0.081922,67401.0,67400.0,0.16965168]
[1730034143222,0.000822,67401.0,67400.0,0.16965168]
[1730034146204,0.000822,67401.0,67400.0,0.54719797]
[1730034146443,0.000822,67401.0,67400.0,0.32015536]
[1730034146686,0.000822,67401.0,67400.0,0.33222057]
[1730034146914,0.000822,67401.0,67400.0,0.34325937]
[1730034147441,0.000822,67401.0,67400.0,0.35068355]
[1730034150419,0.000822,67401.0,67400.0,0.33861847]
[1730034150681,0.000822,67401.0,67400.0,0.36172859]
[1730034154621,0.000822,67401.0,67400.0,0.35068647]
[1730034154908,0.000822,67401.0,67400.0,0.36173018]
[1730034155142,0.000822,67401.0,67400.0,0.36173017]
[1730034155843,0.000822,67401.0,67400.0,0.35068813]
[1730034158777,0.000822,67401.0,67400.0,0.35069335]
[1730034160660,0.000822,67401.0,67400.0,0.35997406]
[1730034161554,0.000822,67401.0,67400.0,0.35069335]
[1730034162470,0.000822,67401.0,67400.0,0.35069364]
[1730034162693,0.000822,67401.0,67400.0,0.33964436]
[1730034162939,0.000822,67401.0,67400.0,0.35069348]
[1730034166816,0.000822,67401.0,67400.0,0.33036365]
[1730034167031,0.000822,67401.0,67400.0,0.35069361]
[1730034167256,0.000822,67401.0,67400.0,0.33862894]
[1730034167481,0.000822,67401.0,67400.0,0.35997413]
[1730034167702,0.000822,67401.0,67400.0,0.37765324]
[1730034168002,0.000822,67401.0,67400.0,0.47705324]
[1730034168232,0.000822,67401.0,67400.0,0.62591383]
[1730034168450,0.000822,67401.0,67400.0,0.63147763]
[1730034168694,0.000822,67401.0,67400.0,0.82476623]
[1730034169137,0.000822,67401.0,67400.0,0.73641878]
[1730034169381,0.000822,67410.0,67409.0,0.153348]
[1730034169603,0.000822,67410.0,67409.0,0.33903064]
[1730034170803,0.000822,67410.0,67409.0,0.32696458]
[1730034171029,0.000822,67410.0,67409.0,0.35006225]
[1730034171254,0.000822,67410.0,67409.0,0.33902036]
[1730034171911,0.000822,67410.0,67409.0,0.34902036]
[1730034172632,0.000822,67410.0,67409.0,0.34402036]
[1730034173285,0.000822,67410.0,67409.0,0.33297847]
[1730034173526,0.000822,67410.0,67409.0,0.34401765]
[1730034174009,0.000822,67410.0,67409.0,0.33901765]
[1730034174904,0.000822,67410.0,67409.0,0.3259154]
[1730034175122,0.000822,67410.0,67409.0,0.34901797]
[1730034176065,0.000822,67410.0,67409.0,0.35829737]
[1730034176284,0.000822,67410.0,67409.0,0.34901797]
[1730034178636,0.000822,67410.0,67409.0,0.32489079]